[Event "Titled Tuesday Blitz November 15 Early 2022"]
[White "Willathgamuwa, Kevin"]
[Black "Sourath Biswas"]
[WhiteFideId "3214168"]
[BlackFideId "35091484"]
[WhiteElo "1962"]
[BlackElo "2164"]
[Result "1-0"]
[Round "03"]
[TimeControl "180+1"]
[Date "2022.11.16"]
[WhiteClock "0:00:48"]
[BlackClock "0:00:01"]

1. e4 {[%clk 0:03:00]}  c6 {[%clk 0:02:57]} 2. Nc3 {[%clk 0:02:59]}  d5 {[%clk 0:02:51]} 3. d4 {[%clk 0:02:59]}  dxe4 {[%clk 0:02:17]} 4. Nxe4 {[%clk 0:03:00]}  Bf5 {[%clk 0:02:11]} 5. Ng3 {[%clk 0:02:58]}  Bg6 {[%clk 0:01:58]} 6. h4 {[%clk 0:02:58]}  h6 {[%clk 0:01:55]} 7. Nf3 {[%clk 0:02:57]}  Nd7 {[%clk 0:01:53]} 8. h5 {[%clk 0:02:57]}  Bh7 {[%clk 0:01:53]} 9. Bd3 {[%clk 0:02:55]}  Bxd3 {[%clk 0:01:52]} 10. Qxd3 {[%clk 0:02:56]}  e6 {[%clk 0:01:53]} 11. Bd2 {[%clk 0:02:56]}  Ngf6 {[%clk 0:01:51]} 12. O-O-O {[%clk 0:02:54]}  Be7 {[%clk 0:01:51]} 13. Ne4 {[%clk 0:02:55]}  Nxe4 {[%clk 0:01:51]} 14. Qxe4 {[%clk 0:02:56]}  Nf6 {[%clk 0:01:52]} 15. Qe2 {[%clk 0:02:56]}  Qd5 {[%clk 0:01:52]} 16. c4 {[%clk 0:02:39]}  Qe4 {[%clk 0:01:52]} 17. Qxe4 {[%clk 0:02:40]}  Nxe4 {[%clk 0:01:52]} 18. Be3 {[%clk 0:02:40]}  f5 {[%clk 0:01:52]} 19. Ne5 {[%clk 0:02:36]}  Bg5 {[%clk 0:01:05]} 20. Nd3 {[%clk 0:01:52]}  O-O-O {[%clk 0:00:59]} 21. Kc2 {[%clk 0:01:46]}  Bxe3 {[%clk 0:00:14]} 22. fxe3 {[%clk 0:01:47]}  Nf6 {[%clk 0:00:13]} 23. Ne5 {[%clk 0:01:41]}  Rhf8 {[%clk 0:00:13]} 24. Ng6 {[%clk 0:01:36]}  Rf7 {[%clk 0:00:13]} 25. Ne5 {[%clk 0:01:36]}  Rc7 {[%clk 0:00:12]} 26. Rdg1 {[%clk 0:01:32]}  c5 {[%clk 0:00:12]} 27. Kd3 {[%clk 0:01:16]}  cxd4 {[%clk 0:00:12]} 28. exd4 {[%clk 0:01:17]}  Ne4 {[%clk 0:00:13]} 29. Ke3 {[%clk 0:01:13]}  Nf6 {[%clk 0:00:08]} 30. b3 {[%clk 0:01:11]}  f4+ {[%clk 0:00:08]} 31. Kd3 {[%clk 0:01:08]}  b5 {[%clk 0:00:07]} 32. cxb5 {[%clk 0:01:02]}  Rc5 {[%clk 0:00:07]} 33. Rc1 {[%clk 0:01:02]}  Rxc1 {[%clk 0:00:06]} 34. Rxc1+ {[%clk 0:01:02]}  Kb7 {[%clk 0:00:07]} 35. Rc6 {[%clk 0:00:53]}  Re8 {[%clk 0:00:05]} 36. Nc4 {[%clk 0:00:48]}  Re7 {[%clk 0:00:02]} 37. Nd6+ {[%clk 0:00:48]}  Ka8 {[%clk 0:00:01]} 38. Rc8# {[%clk 0:00:48]} 1-0


[Site "https://www.chess.com"]

[Event "Titled Tuesday Blitz November 15 Early 2022"]
[White "Willow, Jonah B"]
[Black "Csonka, Balazs"]
[WhiteFideId "438804"]
[BlackFideId "742910"]
[WhiteElo "2300"]
[BlackElo "2404"]
[Result "1-0"]
[Round "03"]
[TimeControl "180+1"]
[Date "2022.11.15"]
[WhiteClock "0:01:15"]
[BlackClock "0:00:07"]

1. e4 {[%clk 0:03:00]}  e6 {[%clk 0:02:57]} 2. d4 {[%clk 0:03:00]}  d5 {[%clk 0:02:57]} 3. Nd2 {[%clk 0:03:01]}  Be7 {[%clk 0:02:54]} 4. e5 {[%clk 0:02:59]}  c5 {[%clk 0:02:52]} 5. c3 {[%clk 0:02:59]}  cxd4 {[%clk 0:02:50]} 6. cxd4 {[%clk 0:03:00]}  Qb6 {[%clk 0:02:50]} 7. Ndf3 {[%clk 0:02:51]}  Bd7 {[%clk 0:02:44]} 8. Bd3 {[%clk 0:02:46]}  Bb5 {[%clk 0:02:31]} 9. Ne2 {[%clk 0:02:45]}  Bb4+ {[%clk 0:02:23]} 10. Kf1 {[%clk 0:02:39]}  Bxd3 {[%clk 0:02:17]} 11. Qxd3 {[%clk 0:02:40]}  Qa6 {[%clk 0:02:13]} 12. Qd1 {[%clk 0:02:36]}  Nc6 {[%clk 0:02:11]} 13. g3 {[%clk 0:02:35]}  Nge7 {[%clk 0:01:56]} 14. Kg2 {[%clk 0:02:35]}  Ng6 {[%clk 0:01:55]} 15. h4 {[%clk 0:02:34]}  h5 {[%clk 0:01:55]} 16. Bg5 {[%clk 0:02:32]}  Rc8 {[%clk 0:01:44]} 17. a3 {[%clk 0:02:32]}  Be7 {[%clk 0:01:43]} 18. Rc1 {[%clk 0:02:25]}  O-O {[%clk 0:01:34]} 19. Bxe7 {[%clk 0:02:15]}  Ncxe7 {[%clk 0:01:32]} 20. Nc3 {[%clk 0:02:15]}  Qb6 {[%clk 0:01:12]} 21. Ng5 {[%clk 0:01:51]}  Qxb2 {[%clk 0:00:36]} 22. Qxh5 {[%clk 0:01:51]}  Rfd8 {[%clk 0:00:36]} 23. Qh7+ {[%clk 0:01:46]}  Kf8 {[%clk 0:00:36]} 24. h5 {[%clk 0:01:47]}  Rxc3 {[%clk 0:00:26]} 25. Rxc3 {[%clk 0:01:48]}  Qxc3 {[%clk 0:00:26]} 26. hxg6 {[%clk 0:01:46]}  Nxg6 {[%clk 0:00:17]} 27. Rh6 {[%clk 0:01:27]}  Qc2 {[%clk 0:00:09]} 28. Nxe6+ {[%clk 0:01:15]}  fxe6 {[%clk 0:00:09]} 29. Rxg6 {[%clk 0:01:15]}  Qe4+ {[%clk 0:00:07]} 30. Kh2 {[%clk 0:01:15]} 1-0


[Site "https://www.chess.com"]

[Event "Titled Tuesday Blitz November 15 Early 2022"]
[White "Winterberg, Lukas"]
[Black "Kiseljova, Marya"]
[WhiteFideId "24622702"]
[BlackFideId "4155009"]
[WhiteElo "2349"]
[BlackElo "1907"]
[Result "1-0"]
[Round "03"]
[TimeControl "180+1"]
[Date "2022.11.16"]
[WhiteClock "0:00:45"]
[BlackClock "0:00:01"]

1. d4 {[%clk 0:02:57]}  d5 {[%clk 0:02:59]} 2. Nf3 {[%clk 0:02:57]}  Nf6 {[%clk 0:02:59]} 3. c4 {[%clk 0:02:58]}  e6 {[%clk 0:02:58]} 4. Nc3 {[%clk 0:02:58]}  c5 {[%clk 0:02:58]} 5. cxd5 {[%clk 0:02:58]}  exd5 {[%clk 0:02:59]} 6. Bg5 {[%clk 0:02:56]}  Nc6 {[%clk 0:02:35]} 7. Bxf6 {[%clk 0:02:52]}  gxf6 {[%clk 0:02:32]} 8. e3 {[%clk 0:02:50]}  c4 {[%clk 0:02:29]} 9. Be2 {[%clk 0:02:37]}  Rg8 {[%clk 0:02:28]} 10. Qa4 {[%clk 0:02:30]}  Rxg2 {[%clk 0:02:19]} 11. Qb5 {[%clk 0:02:30]}  a6 {[%clk 0:02:09]} 12. Qxd5 {[%clk 0:02:28]}  Be6 {[%clk 0:02:00]} 13. Qh5 {[%clk 0:01:55]}  Nb4 {[%clk 0:01:50]} 14. d5 {[%clk 0:01:33]}  Nc2+ {[%clk 0:01:44]} 15. Kf1 {[%clk 0:01:32]}  Bg4 {[%clk 0:00:32]} 16. Qxh7 {[%clk 0:01:29]}  Nxa1 {[%clk 0:00:17]} 17. Kxg2 {[%clk 0:01:19]}  Qd7 {[%clk 0:00:17]} 18. Rxa1 {[%clk 0:01:14]}  O-O-O {[%clk 0:00:17]} 19. Qe4 {[%clk 0:01:06]}  Bh3+ {[%clk 0:00:15]} 20. Kh1 {[%clk 0:01:05]}  Bd6 {[%clk 0:00:13]} 21. Rg1 {[%clk 0:01:01]}  Rh8 {[%clk 0:00:12]} 22. Qxc4+ {[%clk 0:00:56]}  Kb8 {[%clk 0:00:11]} 23. Ne4 {[%clk 0:00:52]}  Bg4 {[%clk 0:00:05]} 24. Nxd6 {[%clk 0:00:46]}  Bxf3+ {[%clk 0:00:01]} 25. Bxf3 {[%clk 0:00:46]}  Qxd6 {[%clk 0:00:02]} 26. Qf4 {[%clk 0:00:45]}  Qxf4 {[%clk 0:00:01]} 27. exf4 {[%clk 0:00:46]}  Rd8 {[%clk 0:00:01]} 28. Rg7 {[%clk 0:00:45]}  Rd7 {[%clk 0:00:01]} 29. h4 {[%clk 0:00:45]}  Kc7 {[%clk 0:00:01]} 30. h5 {[%clk 0:00:45]} 1-0


[Site "https://www.chess.com"]

[Event "Titled Tuesday Blitz November 15 Early 2022"]
[White "Yeremyan, Alen"]
[Black "Golubova, Anna"]
[WhiteFideId "13308998"]
[BlackFideId "24173606"]
[WhiteElo "2159"]
[BlackElo "2047"]
[Result "1-0"]
[Round "03"]
[TimeControl "180+1"]
[Date "2022.11.16"]
[WhiteClock "0:02:16"]
[BlackClock "0:01:26"]

1. d4 {[%clk 0:02:56]}  g6 {[%clk 0:03:00]} 2. g3 {[%clk 0:02:54]}  Bg7 {[%clk 0:03:01]} 3. Bg2 {[%clk 0:02:54]}  d6 {[%clk 0:03:01]} 4. e4 {[%clk 0:02:52]}  Nf6 {[%clk 0:03:01]} 5. Ne2 {[%clk 0:02:53]}  O-O {[%clk 0:03:00]} 6. O-O {[%clk 0:02:53]}  Nc6 {[%clk 0:02:56]} 7. c4 {[%clk 0:02:53]}  e5 {[%clk 0:02:55]} 8. d5 {[%clk 0:02:54]}  Ne7 {[%clk 0:02:54]} 9. Nbc3 {[%clk 0:02:55]}  Nh5 {[%clk 0:02:52]} 10. Be3 {[%clk 0:02:52]}  f5 {[%clk 0:02:52]} 11. exf5 {[%clk 0:02:52]}  gxf5 {[%clk 0:02:52]} 12. f4 {[%clk 0:02:49]}  Nf6 {[%clk 0:02:46]} 13. fxe5 {[%clk 0:02:45]}  dxe5 {[%clk 0:02:46]} 14. Kh1 {[%clk 0:02:45]}  Ng4 {[%clk 0:02:36]} 15. Bg1 {[%clk 0:02:45]}  Ng6 {[%clk 0:02:36]} 16. Qd2 {[%clk 0:02:33]}  Bd7 {[%clk 0:02:12]} 17. c5 {[%clk 0:02:33]}  c6 {[%clk 0:02:01]} 18. Rad1 {[%clk 0:02:31]}  Qe7 {[%clk 0:01:56]} 19. Qc2 {[%clk 0:02:23]}  e4 {[%clk 0:01:53]} 20. Qb3 {[%clk 0:02:22]}  Kh8 {[%clk 0:01:49]} 21. Qxb7 {[%clk 0:02:20]}  Rfb8 {[%clk 0:01:40]} 22. Qc7 {[%clk 0:02:20]}  Rc8 {[%clk 0:01:33]} 23. Qa5 {[%clk 0:02:18]}  cxd5 {[%clk 0:01:27]} 24. Nxd5 {[%clk 0:02:16]}  Qxc5 {[%clk 0:01:26]} 25. Bxc5 {[%clk 0:02:16]} 1-0


[Site "https://www.chess.com"]

[Event "Titled Tuesday Blitz November 15 Early 2022"]
[White "Zanette, Edgard Vinicius"]
[Black "Aaditya Dhingra"]
[WhiteFideId "2109263"]
[BlackFideId "25678191"]
[WhiteElo "2211"]
[BlackElo "2054"]
[Result "1/2-1/2"]
[Round "03"]
[TimeControl "180+1"]
[Date "2022.11.16"]
[WhiteClock "0:00:08"]
[BlackClock "0:00:09"]

1. e4 {[%clk 0:02:59]}  c6 {[%clk 0:02:57]} 2. d4 {[%clk 0:02:58]}  d5 {[%clk 0:02:57]} 3. e5 {[%clk 0:02:59]}  Bf5 {[%clk 0:02:57]} 4. h4 {[%clk 0:02:59]}  h5 {[%clk 0:02:56]} 5. c4 {[%clk 0:02:59]}  e6 {[%clk 0:02:55]} 6. Nc3 {[%clk 0:02:59]}  Nd7 {[%clk 0:02:55]} 7. cxd5 {[%clk 0:02:45]}  exd5 {[%clk 0:02:51]} 8. Bd3 {[%clk 0:02:38]}  Ne7 {[%clk 0:02:44]} 9. Bg5 {[%clk 0:02:34]}  Bxd3 {[%clk 0:02:39]} 10. Qxd3 {[%clk 0:02:35]}  Qa5 {[%clk 0:02:39]} 11. Ne2 {[%clk 0:02:25]}  O-O-O {[%clk 0:02:33]} 12. O-O {[%clk 0:02:22]}  Re8 {[%clk 0:02:30]} 13. b4 {[%clk 0:02:16]}  Qxb4 {[%clk 0:02:26]} 14. Rab1 {[%clk 0:02:16]}  Qc4 {[%clk 0:02:25]} 15. Qd2 {[%clk 0:02:10]}  f6 {[%clk 0:02:22]} 16. Bf4 {[%clk 0:01:57]}  Ng6 {[%clk 0:02:20]} 17. exf6 {[%clk 0:01:51]}  gxf6 {[%clk 0:02:01]} 18. Bg3 {[%clk 0:01:30]}  Bh6 {[%clk 0:01:58]} 19. Qb2 {[%clk 0:01:31]}  Qa6 {[%clk 0:01:53]} 20. Qb4 {[%clk 0:01:21]}  Bf8 {[%clk 0:01:36]} 21. Qb2 {[%clk 0:01:12]}  Rg8 {[%clk 0:01:27]} 22. Nxd5 {[%clk 0:01:05]}  f5 {[%clk 0:01:10]} 23. Nef4 {[%clk 0:00:57]}  Nxf4 {[%clk 0:01:07]} 24. Bxf4 {[%clk 0:00:56]}  Re4 {[%clk 0:00:50]} 25. Rfc1 {[%clk 0:00:38]}  Rxf4 {[%clk 0:00:44]} 26. Nxf4 {[%clk 0:00:36]}  Bh6 {[%clk 0:00:44]} 27. Qb3 {[%clk 0:00:29]}  Rg4 {[%clk 0:00:40]} 28. Ne6 {[%clk 0:00:17]}  Bxc1 {[%clk 0:00:39]} 29. Rxc1 {[%clk 0:00:16]}  Qe2 {[%clk 0:00:36]} 30. Nc5 {[%clk 0:00:13]}  Nxc5 {[%clk 0:00:32]} 31. dxc5 {[%clk 0:00:14]}  Qe7 {[%clk 0:00:19]} 32. Qc3 {[%clk 0:00:11]}  Rxh4 {[%clk 0:00:17]} 33. Qh8+ {[%clk 0:00:10]}  Kc7 {[%clk 0:00:17]} 34. Qh6 {[%clk 0:00:07]}  Re4 {[%clk 0:00:13]} 35. Qd2 {[%clk 0:00:05]}  f4 {[%clk 0:00:12]} 36. Rd1 {[%clk 0:00:05]}  b6 {[%clk 0:00:11]} 37. cxb6+ {[%clk 0:00:04]}  axb6 {[%clk 0:00:11]} 38. Qd3 {[%clk 0:00:03]}  c5 {[%clk 0:00:10]} 39. Qd5 {[%clk 0:00:03]}  Re1+ {[%clk 0:00:09]} 40. Rxe1 {[%clk 0:00:04]}  Qxe1+ {[%clk 0:00:10]} 41. Kh2 {[%clk 0:00:05]}  Qxf2 {[%clk 0:00:10]} 42. Qf7+ {[%clk 0:00:05]}  Kc6 {[%clk 0:00:09]} 43. Qe6+ {[%clk 0:00:04]}  Kb5 {[%clk 0:00:08]} 44. Qb3+ {[%clk 0:00:05]}  Ka6 {[%clk 0:00:08]} 45. Qc4+ {[%clk 0:00:05]}  Ka5 {[%clk 0:00:07]} 46. Qc3+ {[%clk 0:00:05]}  Kb5 {[%clk 0:00:07]} 47. Qb3+ {[%clk 0:00:05]}  Kc6 {[%clk 0:00:07]} 48. Qe6+ {[%clk 0:00:05]}  Kb7 {[%clk 0:00:08]} 49. Qd7+ {[%clk 0:00:06]}  Ka6 {[%clk 0:00:08]} 50. Qa4+ {[%clk 0:00:06]}  Kb7 {[%clk 0:00:08]} 51. Qd7+ {[%clk 0:00:07]}  Kb8 {[%clk 0:00:09]} 52. Qd8+ {[%clk 0:00:07]}  Kb7 {[%clk 0:00:09]} 53. Qd7+ {[%clk 0:00:08]} 1/2-1/2


[Site "https://www.chess.com"]

[Event "Titled Tuesday Blitz November 15 Early 2022"]
[White "Zemlyanskii, Ivan"]
[Black "Nakamura, Hikaru"]
[WhiteFideId "24249971"]
[BlackFideId "2016192"]
[WhiteElo "2107"]
[BlackElo "2909"]
[Result "0-1"]
[Round "03"]
[TimeControl "180+1"]
[Date "2022.11.15"]
[WhiteClock "0:00:01"]
[BlackClock "0:00:54"]

1. d4 {[%clk 0:03:00]}  g6 {[%clk 0:02:59]} 2. c4 {[%clk 0:02:59]}  Bg7 {[%clk 0:02:59]} 3. Nc3 {[%clk 0:02:56]}  c5 {[%clk 0:02:58]} 4. d5 {[%clk 0:02:55]}  Bxc3+ {[%clk 0:02:58]} 5. bxc3 {[%clk 0:02:56]}  Qa5 {[%clk 0:02:59]} 6. Bd2 {[%clk 0:02:44]}  f5 {[%clk 0:02:58]} 7. g3 {[%clk 0:02:03]}  Nf6 {[%clk 0:02:56]} 8. Bg2 {[%clk 0:02:03]}  d6 {[%clk 0:02:56]} 9. Nh3 {[%clk 0:01:59]}  Nbd7 {[%clk 0:02:55]} 10. Ng5 {[%clk 0:01:47]}  Ne5 {[%clk 0:02:44]} 11. Qb3 {[%clk 0:01:44]}  Qa6 {[%clk 0:02:43]} 12. Ne6 {[%clk 0:01:25]}  Bxe6 {[%clk 0:02:41]} 13. dxe6 {[%clk 0:01:25]}  Ne4 {[%clk 0:02:24]} 14. Qb5+ {[%clk 0:01:18]}  Kd8 {[%clk 0:02:18]} 15. Qxa6 {[%clk 0:00:59]}  bxa6 {[%clk 0:02:18]} 16. f3 {[%clk 0:00:28]}  Nxd2 {[%clk 0:02:17]} 17. f4 {[%clk 0:00:25]}  Rb8 {[%clk 0:02:07]} 18. Kxd2 {[%clk 0:00:24]}  Nxc4+ {[%clk 0:02:07]} 19. Kd3 {[%clk 0:00:24]}  Nb2+ {[%clk 0:02:06]} 20. Kc2 {[%clk 0:00:21]}  Kc7 {[%clk 0:02:07]} 21. Bd5 {[%clk 0:00:20]}  Na4 {[%clk 0:02:01]} 22. Rab1 {[%clk 0:00:20]}  Nb6 {[%clk 0:01:59]} 23. e4 {[%clk 0:00:20]}  fxe4 {[%clk 0:01:58]} 24. Bxe4 {[%clk 0:00:21]}  d5 {[%clk 0:01:59]} 25. Bf3 {[%clk 0:00:21]}  Kd6 {[%clk 0:01:58]} 26. Rbd1 {[%clk 0:00:17]}  Rhd8 {[%clk 0:01:53]} 27. Rhe1 {[%clk 0:00:17]}  Kc7 {[%clk 0:01:50]} 28. Re5 {[%clk 0:00:17]}  Nc4 {[%clk 0:01:50]} 29. Re2 {[%clk 0:00:15]}  Rb2+ {[%clk 0:01:46]} 30. Kd3 {[%clk 0:00:16]}  a5 {[%clk 0:01:43]} 31. Bxd5 {[%clk 0:00:10]}  Rxe2 {[%clk 0:01:07]} 32. Kxe2 {[%clk 0:00:11]}  Nb6 {[%clk 0:01:07]} 33. Be4 {[%clk 0:00:06]}  Rxd1 {[%clk 0:01:07]} 34. Kxd1 {[%clk 0:00:07]}  Kd6 {[%clk 0:01:08]} 35. f5 {[%clk 0:00:08]}  gxf5 {[%clk 0:01:08]} 36. Bxf5 {[%clk 0:00:09]}  h6 {[%clk 0:01:09]} 37. h4 {[%clk 0:00:08]}  Ke5 {[%clk 0:01:06]} 38. g4 {[%clk 0:00:05]}  Nd5 {[%clk 0:01:06]} 39. Kd2 {[%clk 0:00:05]}  h5 {[%clk 0:01:01]} 40. Kd3 {[%clk 0:00:05]}  c4+ {[%clk 0:00:55]} 41. Kxc4 {[%clk 0:00:01]}  hxg4 {[%clk 0:00:55]} 42. Bb1 {[%clk 0:00:01]}  g3 {[%clk 0:00:54]} 0-1


[Site "https://www.chess.com"]

[Event "Titled Tuesday Blitz November 15 Early 2022"]
[White "Zeydan, Salih"]
[Black "Adithya A Chullikkad"]
[WhiteFideId "6361722"]
[BlackFideId "45078734"]
[WhiteElo "1988"]
[BlackElo "2106"]
[Result "1/2-1/2"]
[Round "03"]
[TimeControl "180+1"]
[Date "2022.11.16"]
[WhiteClock "0:01:19"]
[BlackClock "0:01:25"]

1. e4 {[%clk 0:02:55]}  c5 {[%clk 0:02:59]} 2. Nf3 {[%clk 0:02:53]}  d6 {[%clk 0:02:59]} 3. c3 {[%clk 0:02:52]}  Nf6 {[%clk 0:02:58]} 4. Bd3 {[%clk 0:02:53]}  e6 {[%clk 0:02:51]} 5. O-O {[%clk 0:02:54]}  Nbd7 {[%clk 0:02:51]} 6. Re1 {[%clk 0:02:54]}  b6 {[%clk 0:02:51]} 7. a4 {[%clk 0:02:53]}  Bb7 {[%clk 0:02:51]} 8. a5 {[%clk 0:02:53]}  Be7 {[%clk 0:02:51]} 9. Bc2 {[%clk 0:02:51]}  O-O {[%clk 0:02:51]} 10. d4 {[%clk 0:02:51]}  cxd4 {[%clk 0:02:51]} 11. cxd4 {[%clk 0:02:51]}  e5 {[%clk 0:02:50]} 12. Nc3 {[%clk 0:02:50]}  exd4 {[%clk 0:02:48]} 13. Nxd4 {[%clk 0:02:49]}  Nc5 {[%clk 0:02:48]} 14. Bg5 {[%clk 0:02:36]}  h6 {[%clk 0:02:43]} 15. Bh4 {[%clk 0:02:33]}  Nfd7 {[%clk 0:02:38]} 16. Bxe7 {[%clk 0:02:29]}  Qxe7 {[%clk 0:02:38]} 17. Nf5 {[%clk 0:02:30]}  Qe5 {[%clk 0:02:33]} 18. Nxd6 {[%clk 0:02:22]}  Bc6 {[%clk 0:02:30]} 19. Nc4 {[%clk 0:02:14]}  Qg5 {[%clk 0:02:28]} 20. axb6 {[%clk 0:02:09]}  axb6 {[%clk 0:02:27]} 21. Ne3 {[%clk 0:01:55]}  Nf6 {[%clk 0:02:19]} 22. Ned5 {[%clk 0:01:51]}  Rxa1 {[%clk 0:02:18]} 23. Qxa1 {[%clk 0:01:50]}  Nxd5 {[%clk 0:02:14]} 24. exd5 {[%clk 0:01:48]}  Bxd5 {[%clk 0:02:13]} 25. Nxd5 {[%clk 0:01:48]}  Qxd5 {[%clk 0:02:14]} 26. Rd1 {[%clk 0:01:48]}  Qe5 {[%clk 0:02:08]} 27. Qa3 {[%clk 0:01:43]}  Re8 {[%clk 0:02:06]} 28. h3 {[%clk 0:01:34]}  Qe2 {[%clk 0:02:06]} 29. Qc3 {[%clk 0:01:28]}  Ne4 {[%clk 0:01:33]} 30. Bxe4 {[%clk 0:01:28]}  Qxd1+ {[%clk 0:01:32]} 31. Kh2 {[%clk 0:01:27]}  Rxe4 {[%clk 0:01:29]} 32. Qc8+ {[%clk 0:01:28]}  Kh7 {[%clk 0:01:27]} 33. Qf5+ {[%clk 0:01:28]}  g6 {[%clk 0:01:27]} 34. Qxf7+ {[%clk 0:01:19]}  Kh8 {[%clk 0:01:26]} 35. Qf6+ {[%clk 0:01:19]}  Kh7 {[%clk 0:01:25]} 36. Qf7+ {[%clk 0:01:19]}  Kh8 {[%clk 0:01:25]} 37. Qf6+ {[%clk 0:01:19]}  Kh7 {[%clk 0:01:25]} 38. Qf7+ {[%clk 0:01:19]} 1/2-1/2


[Site "https://www.chess.com"]

[Event "Titled Tuesday Blitz November 15 Early 2022"]
[White "Zhigalko, Sergei"]
[Black "Parligras, Mircea-Emilian"]
[WhiteFideId "13502956"]
[BlackFideId "1204297"]
[WhiteElo "2662"]
[BlackElo "2507"]
[Result "0-1"]
[Round "03"]
[TimeControl "180+1"]
[Date "2022.11.15"]
[WhiteClock "0:00:02"]
[BlackClock "0:00:14"]

1. e4 {[%clk 0:03:00]}  e5 {[%clk 0:02:59]} 2. Nf3 {[%clk 0:03:00]}  Nc6 {[%clk 0:02:59]} 3. Bb5 {[%clk 0:02:58]}  Nf6 {[%clk 0:02:59]} 4. O-O {[%clk 0:02:58]}  Nxe4 {[%clk 0:02:59]} 5. d4 {[%clk 0:02:59]}  Nd6 {[%clk 0:02:59]} 6. Bxc6 {[%clk 0:02:59]}  dxc6 {[%clk 0:03:00]} 7. dxe5 {[%clk 0:02:59]}  Nf5 {[%clk 0:03:00]} 8. Qxd8+ {[%clk 0:02:59]}  Kxd8 {[%clk 0:03:01]} 9. Nc3 {[%clk 0:02:59]}  Ke8 {[%clk 0:03:00]} 10. h3 {[%clk 0:02:59]}  Be7 {[%clk 0:03:00]} 11. g4 {[%clk 0:02:52]}  Nh4 {[%clk 0:02:59]} 12. Nxh4 {[%clk 0:02:53]}  Bxh4 {[%clk 0:03:00]} 13. Kg2 {[%clk 0:02:53]}  Be7 {[%clk 0:02:56]} 14. Be3 {[%clk 0:02:50]}  h5 {[%clk 0:02:52]} 15. f3 {[%clk 0:02:50]}  b6 {[%clk 0:02:43]} 16. Rad1 {[%clk 0:02:41]}  Be6 {[%clk 0:02:42]} 17. Ne2 {[%clk 0:02:30]}  hxg4 {[%clk 0:02:34]} 18. hxg4 {[%clk 0:02:29]}  Rd8 {[%clk 0:02:28]} 19. Nf4 {[%clk 0:02:21]}  Rxd1 {[%clk 0:02:22]} 20. Rxd1 {[%clk 0:02:20]}  Bd7 {[%clk 0:02:16]} 21. Nh5 {[%clk 0:02:16]}  Rh7 {[%clk 0:02:11]} 22. a4 {[%clk 0:02:08]}  a5 {[%clk 0:01:58]} 23. b3 {[%clk 0:02:07]}  c5 {[%clk 0:01:58]} 24. c4 {[%clk 0:01:56]}  Bc6 {[%clk 0:01:41]} 25. Kg3 {[%clk 0:01:54]}  f5 {[%clk 0:01:17]} 26. exf6 {[%clk 0:01:09]}  gxf6 {[%clk 0:01:01]} 27. Bf4 {[%clk 0:01:09]}  Bd8 {[%clk 0:00:57]} 28. Rd2 {[%clk 0:00:48]}  Rd7 {[%clk 0:00:52]} 29. Kf2 {[%clk 0:00:19]}  Rxd2+ {[%clk 0:00:51]} 30. Bxd2 {[%clk 0:00:20]}  Kf7 {[%clk 0:00:40]} 31. Ng3 {[%clk 0:00:14]}  Be7 {[%clk 0:00:33]} 32. Bf4 {[%clk 0:00:10]}  Bd6 {[%clk 0:00:33]} 33. Ke3 {[%clk 0:00:09]}  Ke6 {[%clk 0:00:32]} 34. Nf5 {[%clk 0:00:03]}  Bd7 {[%clk 0:00:24]} 35. Ng7+ {[%clk 0:00:02]}  Ke7 {[%clk 0:00:23]} 36. Nh5 {[%clk 0:00:02]}  Be8 {[%clk 0:00:20]} 37. Ng3 {[%clk 0:00:02]}  Bg6 {[%clk 0:00:19]} 38. Ne4 {[%clk 0:00:03]}  Ke6 {[%clk 0:00:19]} 39. Bxd6 {[%clk 0:00:02]}  cxd6 {[%clk 0:00:19]} 40. f4 {[%clk 0:00:03]}  f5 {[%clk 0:00:16]} 41. gxf5+ {[%clk 0:00:03]}  Bxf5 {[%clk 0:00:16]} 42. Kf3 {[%clk 0:00:03]}  d5 {[%clk 0:00:15]} 43. Ng5+ {[%clk 0:00:03]}  Kd6 {[%clk 0:00:16]} 44. cxd5 {[%clk 0:00:01]}  Kxd5 {[%clk 0:00:16]} 45. Ke3 {[%clk 0:00:01]}  Bc2 {[%clk 0:00:16]} 46. Nf3 {[%clk 0:00:01]}  Bxb3 {[%clk 0:00:15]} 47. f5 {[%clk 0:00:01]}  Bxa4 {[%clk 0:00:15]} 48. Kf4 {[%clk 0:00:02]}  Be8 {[%clk 0:00:15]} 49. Ne5 {[%clk 0:00:02]}  a4 {[%clk 0:00:14]} 50. f6 {[%clk 0:00:02]}  Ke6 {[%clk 0:00:14]} 51. f7 {[%clk 0:00:01]}  Bxf7 {[%clk 0:00:14]} 52. Nc4 {[%clk 0:00:02]}  b5 {[%clk 0:00:14]} 53. Nb6 {[%clk 0:00:02]}  a3 {[%clk 0:00:14]} 0-1


[Site "https://www.chess.com"]

[Event "Titled Tuesday Blitz November 15 Early 2022"]
[White "Acor, Corey"]
[Black "Mohamed Anees M"]
[WhiteFideId "2024861"]
[BlackFideId "35065815"]
[WhiteElo "2340"]
[BlackElo "2135"]
[Result "1-0"]
[Round "04"]
[TimeControl "180+1"]
[Date "2022.11.16"]
[WhiteClock "0:00:12"]
[BlackClock "0:00:02"]

1. e4 {[%clk 0:03:00]}  c5 {[%clk 0:02:59]} 2. Nc3 {[%clk 0:03:00]}  Nc6 {[%clk 0:02:58]} 3. g3 {[%clk 0:03:01]}  g6 {[%clk 0:02:57]} 4. Bg2 {[%clk 0:03:00]}  Bg7 {[%clk 0:02:58]} 5. d3 {[%clk 0:02:59]}  d6 {[%clk 0:02:58]} 6. Be3 {[%clk 0:02:58]}  e6 {[%clk 0:02:58]} 7. Nf3 {[%clk 0:02:51]}  Nd4 {[%clk 0:02:57]} 8. Bd2 {[%clk 0:02:39]}  Ne7 {[%clk 0:02:53]} 9. Nxd4 {[%clk 0:02:36]}  cxd4 {[%clk 0:02:53]} 10. Ne2 {[%clk 0:02:36]}  d5 {[%clk 0:02:46]} 11. O-O {[%clk 0:02:27]}  dxe4 {[%clk 0:02:45]} 12. dxe4 {[%clk 0:02:23]}  O-O {[%clk 0:02:34]} 13. c3 {[%clk 0:02:23]}  Nc6 {[%clk 0:02:32]} 14. f4 {[%clk 0:02:10]}  Qb6 {[%clk 0:02:09]} 15. Kh1 {[%clk 0:01:56]}  Qxb2 {[%clk 0:02:01]} 16. cxd4 {[%clk 0:01:56]}  Nxd4 {[%clk 0:01:56]} 17. e5 {[%clk 0:01:41]}  Nxe2 {[%clk 0:01:53]} 18. Qxe2 {[%clk 0:01:42]}  Rd8 {[%clk 0:01:50]} 19. Rfd1 {[%clk 0:01:31]}  Rb8 {[%clk 0:01:32]} 20. Qf2 {[%clk 0:01:03]}  b6 {[%clk 0:01:19]} 21. Be3 {[%clk 0:00:49]}  Rxd1+ {[%clk 0:01:14]} 22. Rxd1 {[%clk 0:00:50]}  Qxf2 {[%clk 0:00:56]} 23. Rd8+ {[%clk 0:00:50]}  Bf8 {[%clk 0:00:57]} 24. Bxf2 {[%clk 0:00:50]}  Kg7 {[%clk 0:00:50]} 25. g4 {[%clk 0:00:31]}  Bc5 {[%clk 0:00:50]} 26. Bh4 {[%clk 0:00:27]}  b5 {[%clk 0:00:04]} 27. Bf6+ {[%clk 0:00:21]}  Kh6 {[%clk 0:00:05]} 28. Rh8 {[%clk 0:00:15]}  a5 {[%clk 0:00:02]} 29. Rg8 {[%clk 0:00:12]} 1-0


[Site "https://www.chess.com"]